fUSD/lending_fUSD_20240518
["ID","MTS","AMOUNT","RATE_DAILY","PERIOD"]
[327376881,1716028260717,-923.18,0.00036164,9]
[327376882,1716028260726,-151.0,0.00036164,7]
[327376883,1716028260735,-500.0,0.00036164,9]
[327376884,1716028260744,-151.0,0.00036164,7]
[327376885,1716028260754,-500.0,0.00036164,9]
[327376886,1716028260764,-126.21810199,0.00036164,7]
[327376887,1716028260776,-166.59748601,0.00036164,7]
[327376888,1716028260786,-151.455743,0.00036164,7]
[327376889,1716028260796,-500.0,0.00036164,9]
[327376890,1716028260806,-500.0,0.00036164,9]
[327376891,1716028260816,-500.0,0.00036164,9]
[327376892,1716028260826,-714.14,0.00036164,9]
[327376893,1716028260836,-590.53,0.00036164,9]
[327376894,1716028260846,-162.108405,0.00036164,7]
[327376895,1716028260855,-193.8401575,0.00036164,9]
[327376896,1716028260865,-500.0,0.00036164,9]
[327376897,1716028260875,-162.108405,0.00036164,7]
[327376898,1716028260885,-218.23400189,0.00036164,9]
[327376899,1716028260896,-500.0,0.00036164,9]
[327376900,1716028260906,-178.41857379,0.00036164,9]
[327376901,1716028260915,-1040.49,0.00036164,9]
[327376902,1716028260925,-2684.99,0.00036164,9]
[327376903,1716028260934,-332.38267483,0.00036164,9]
[327376904,1716028260943,-471.74056469,0.00036164,9]
[327376905,1716028260953,-162.108405,0.00036164,7]
[327376906,1716028260963,-162.108405,0.00036164,7]
[327376907,1716028260972,-645.45,0.00036164,9]
[327376908,1716028260982,-511.84789617,0.00036164,9]
[327376909,1716028260991,-500.0,0.00036164,9]
[327376910,1716028261000,-500.0,0.00036164,9]
[327376911,1716028261011,-911.14,0.00036164,9]
[327376912,1716028261022,-151.0,0.00036164,7]
[327376913,1716028261032,-520.35660028,0.00036164,9]
[327376914,1716028261043,-500.0,0.00036164,9]
[327376915,1716028261054,-500.0,0.00036164,9]
[327376916,1716028261064,-500.0,0.00036164,9]
[327376917,1716028261074,-151.0,0.00036164,7]
[327376918,1716028261084,-296.467478,0.00036164,7]
[327376919,1716028261093,-296.467478,0.00036164,7]
[327376920,1716028261102,-500.0,0.00036164,9]
[327376921,1716028261112,-500.0,0.00036164,9]
[327376922,1716028261121,-500.0,0.00036164,9]
[327376923,1716028261132,-198.9,0.00036164,9]
[327376924,1716028261143,-296.467478,0.00036164,7]
[327376925,1716028261153,-296.467478,0.00036164,7]
[327376926,1716028261163,-500.0,0.00036164,2]
[327376927,1716028261173,-256.85831935,0.00036338,2]
[327376928,1716028261182,-854.47480929,0.00036338,2]
[327376929,1716028261195,-250.82411457,0.00036338,2]
[327376930,1716028262076,-500.0,0.00035616,9]
[327376931,1716028262087,-500.0,0.0003589,9]
[327376932,1716028262096,-500.0,0.00036164,9]
[327376933,1716028262106,-6.28635,0.00036338,2]
[327376934,1716028262127,-345.30254868,0.00035616,2]
[327376935,1716028262138,-154.69745132,0.00035616,2]
[327376936,1716028262147,-858.15921868,0.00036338,2]
[327376937,1716028262159,-1094.51766,0.00036338,2]
[327376938,1716028262169,-628.18,0.00036338,2]
[327376939,1716028262206,-1843.118017,0.00036338,2]
[327376940,1716028262220,-643.36793979,0.00036338,2]
[327376941,1716028262230,-836.10649116,0.00036338,2]
[327376942,1716028262239,-500.0,0.00036437,9]
[327376943,1716028262250,-151.0,0.00036437,7]
[327376944,1716028262260,-152.788723,0.00036437,7]
[327376945,1716028262270,-151.0,0.00036437,7]
[327376946,1716028262279,-348.250849,0.00036437,7]
[327376947,1716028262289,-348.250849,0.00036437,7]
[327376948,1716028262298,-151.0,0.00036437,7]
[327376949,1716028262308,-151.0,0.00036437,7]
[327376950,1716028262317,-151.0,0.00036437,7]
[327376951,1716028262326,-151.0,0.00036437,7]
[327376952,1716028262335,-151.0,0.00036437,7]
[327376953,1716028262345,-176.472625,0.00036437,7]
[327376954,1716028262354,-176.472625,0.00036437,7]
[327376955,1716028262364,-572.268585,0.00036437,7]
[327376956,1716028262373,-572.268585,0.00036437,7]
[327376957,1716028262383,-151.0,0.00036437,7]
[327376958,1716028262392,-951.94,0.00036437,9]
[327376959,1716028262401,-951.94,0.00036437,9]
[327376960,1716028262410,-951.94,0.00036437,9]
[327376961,1716028262421,-500.0,0.00036437,9]
[327376962,1716028262431,-575.1338403,0.00036437,9]
[327376963,1716028262440,-500.0,0.00036438,9]
[327376964,1716028262450,-500.0,0.00036438,9]
[327376965,1716028262459,-500.0,0.00036438,9]
[327376966,1716028262468,-516.71776243,0.00036438,9]
[327376967,1716028262477,-500.0,0.00036438,7]
[327376968,1716028262486,-500.0,0.00036438,9]
[327376969,1716028262495,-500.0,0.00036438,9]
[327376970,1716028262506,-500.0,0.00036438,9]
[327376971,1716028262520,-499.54530382,0.00036438,9]
[327376972,1716028262531,-500.0,0.00036438,9]
[327376973,1716028262540,-500.0,0.00036438,9]
[327376974,1716028262550,-500.0,0.00036438,9]
[327376975,1716028262560,-517.8015721,0.00036438,9]
[327376976,1716028262569,-500.0,0.00036438,9]
[327376977,1716028262579,-500.0,0.00036438,9]
[327376978,1716028262590,-500.0,0.00036438,9]
[327376979,1716028262600,-500.0,0.00036438,9]
[327376980,1716028262610,-500.0,0.00036438,9]
[327376981,1716028262619,-500.0,0.00036438,9]
[327376982,1716028262629,-500.0,0.00036438,9]
[327376983,1716028262638,-309.9868731,0.00036438,9]
[327376984,1716028262647,-500.0,0.00036438,9]
[327376985,1716028262656,-500.0,0.00036438,9]
[327376986,1716028262666,-500.0,0.00036438,9]
[327376987,1716028262675,-500.0,0.00036438,9]
[327376988,1716028262685,-500.0,0.00036438,9]
[327376989,1716028262705,-500.0,0.00036438,9]
[327376990,1716028262714,-500.0,0.00036438,9]
[327376991,1716028262724,-500.0,0.00036438,9]
[327376992,1716028262735,-500.0,0.00036438,9]
[327376993,1716028262746,-500.0,0.00036438,9]
[327376994,1716028262757,-500.0,0.00036438,9]
[327376995,1716028262767,-500.0,0.00036438,9]
[327376996,1716028262777,-500.0,0.00036438,9]
[327376997,1716028262786,-500.0,0.00036438,9]
[327376998,1716028262796,-411.42044975,0.00036438,9]
[327376999,1716028262806,-500.0,0.00036438,9]
[327377000,1716028262815,-500.0,0.00036438,9]
[327377001,1716028262825,-198.94009519,0.00036438,9]
[327377002,1716028262835,-500.0,0.00036438,9]
[327377003,1716028262845,-500.0,0.00036438,9]
[327377004,1716028262854,-500.0,0.00036438,9]
[327377005,1716028262863,-500.0,0.00036438,9]
[327377006,1716028262873,-500.0,0.00036438,9]
[327377007,1716028262883,-500.0,0.00036438,9]
[327377008,1716028262892,-500.0,0.00036438,9]
[327377009,1716028262901,-500.0,0.00036438,9]
[327377010,1716028262911,-500.0,0.00036438,9]
[327377011,1716028262919,-516.70482783,0.00036438,9]
[327377012,1716028262929,-500.0,0.00036438,9]
[327377013,1716028262938,-500.0,0.00036438,9]
[327377014,1716028262947,-500.0,0.00036438,9]
[327377015,1716028262957,-500.0,0.00036438,9]
[327377016,1716028262966,-271.70997858,0.00036438,9]
[327377017,1716028262975,-500.0,0.00036438,9]
[327377018,1716028262985,-500.0,0.00036438,9]
[327377019,1716028262994,-500.0,0.00036438,9]
[327377020,1716028263005,-500.0,0.00036438,9]
[327377021,1716028263014,-500.0,0.00036438,9]
[327377022,1716028263024,-500.0,0.00036438,9]
[327377023,1716028263033,-500.0,0.00036438,9]
[327377024,1716028263042,-151.0,0.00036438,7]
[327377025,1716028263051,-500.0,0.00036438,9]
[327377026,1716028263061,-500.0,0.00036438,9]
[327377027,1716028263073,-151.0,0.00036438,7]
[327377028,1716028263082,-500.0,0.00036438,9]
[327377029,1716028263091,-151.0,0.00036438,7]
[327377030,1716028263101,-151.0,0.00036438,7]
[327377031,1716028263110,-500.0,0.00036438,9]
[327377032,1716028263119,-500.0,0.00036438,9]
[327377033,1716028263128,-500.0,0.00036438,9]
[327377034,1716028263138,-500.0,0.00036438,9]
[327377035,1716028263148,-500.0,0.00036438,9]
[327377036,1716028263171,-500.0,0.00036438,9]
[327377037,1716028263189,-500.0,0.00036438,9]
[327377038,1716028263206,-192.86057948,0.00036438,9]
[327377039,1716028263221,-500.0,0.00036438,9]
[327377040,1716028263238,-500.0,0.00036438,9]
[327377041,1716028263252,-500.0,0.00036438,9]
[327377042,1716028263268,-500.0,0.00036438,9]
[327377043,1716028263289,-500.0,0.00036438,9]
[327377044,1716028263305,-500.0,0.00036438,9]
[327377045,1716028263320,-4048.86,0.00036438,9]
[327377046,1716028263337,-500.0,0.00036438,9]
[327377047,1716028263354,-151.0,0.00036438,7]
[327377048,1716028263369,-500.0,0.00036438,9]
[327377049,1716028263380,-516.54569512,0.00036438,9]
[327377050,1716028263393,-500.0,0.00036438,9]
[327377051,1716028263406,-500.0,0.00036438,9]
[327377052,1716028263421,-500.0,0.00036438,9]
[327377053,1716028263435,-500.0,0.00036438,9]
[327377054,1716028263453,-500.0,0.00036438,9]
[327377055,1716028263467,-151.0,0.00036438,7]
[327377056,1716028263479,-151.0,0.00036438,7]
[327377057,1716028263490,-500.0,0.00036438,9]
[327377058,1716028263504,-547.08,0.00036438,9]
[327377059,1716028263525,-500.0,0.00036438,9]
[327377060,1716028263537,-500.0,0.00036438,9]
[327377061,1716028263551,-500.0,0.00036438,9]
[327377062,1716028263569,-500.0,0.00036438,9]
[327377063,1716028263581,-500.0,0.00036438,9]
[327377064,1716028263594,-500.0,0.00036438,9]
[327377065,1716028263608,-500.0,0.00036438,9]
[327377066,1716028263625,-151.0,0.00036438,7]
[327377067,1716028263652,-500.0,0.00036438,9]
[327377068,1716028263667,-542.69744456,0.00036438,9]
[327377069,1716028263683,-151.0,0.00036438,7]
[327377070,1716028263699,-500.0,0.00036438,9]
[327377071,1716028263716,-151.0,0.00036438,7]
[327377072,1716028263731,-587.8,0.00036438,9]
[327377073,1716028263747,-500.0,0.00036438,9]
[327377074,1716028263763,-500.0,0.00036438,9]
[327377075,1716028263777,-151.0,0.00036438,7]
[327377076,1716028263792,-500.0,0.00036438,9]
[327377077,1716028263805,-572.38,0.00036438,9]
[327377078,1716028263820,-500.0,0.00036438,9]
[327377079,1716028263833,-500.0,0.00036438,9]
[327377080,1716028263847,-616.55,0.00036438,9]
[327377081,1716028263860,-500.0,0.00036438,9]
[327377082,1716028263874,-2711.51,0.00036438,9]
[327377083,1716028263887,-500.0,0.00036438,9]
[327377084,1716028263902,-500.0,0.00036438,9]
[327377085,1716028263915,-500.0,0.00036438,9]
[327377086,1716028263928,-500.0,0.00036438,9]
[327377087,1716028263942,-500.0,0.00036438,9]
[327377088,1716028263955,-536.65,0.00036438,9]
[327377089,1716028263967,-500.0,0.00036438,9]
[327377090,1716028263981,-500.0,0.00036438,9]
[327377091,1716028263993,-500.0,0.00036438,7]
[327377092,1716028264008,-500.0,0.00036438,9]
[327377093,1716028264020,-500.0,0.00036438,9]
[327377094,1716028264033,-554.43,0.00036438,9]
[327377095,1716028264046,-500.0,0.00036438,9]
[327377096,1716028264059,-408.34080479,0.00036438,9]
[327377097,1716028264071,-526.76558255,0.00036438,9]
[327377098,1716028264083,-500.0,0.00036438,9]
[327377099,1716028264096,-500.0,0.00036438,9]
[327377100,1716028264108,-500.0,0.00036438,9]
[327377101,1716028264120,-500.0,0.00036438,9]
[327377102,1716028264132,-500.0,0.00036438,9]
[327377103,1716028264145,-494.21343385,0.00036438,9]
[327377104,1716028264157,-563.92,0.00036438,9]
[327377105,1716028264170,-571.73,0.00036438,9]
[327377106,1716028264182,-603.58,0.00036438,9]
[327377107,1716028264194,-545.62,0.00036438,9]
[327377108,1716028264207,-500.0,0.00036438,9]
[327377109,1716028264219,-500.0,0.00036438,9]
[327377110,1716028264232,-500.0,0.00036438,9]
[327377111,1716028264245,-500.0,0.00036438,9]
[327377112,1716028264259,-151.0,0.00036438,7]
[327377113,1716028264271,-151.0,0.00036438,7]
[327377114,1716028264284,-500.0,0.00036438,9]
[327377115,1716028264296,-500.0,0.00036438,9]
[327377116,1716028264309,-500.0,0.00036438,9]
[327377117,1716028264321,-546.53,0.00036438,9]
[327377118,1716028264333,-500.0,0.00036438,9]
[327377119,1716028264346,-668.93,0.00036438,9]
[327377120,1716028264358,-151.0,0.00036438,7]
[327377121,1716028264370,-500.0,0.00036438,9]
[327377122,1716028264382,-500.0,0.00036438,9]
[327377123,1716028264394,-500.0,0.00036438,9]
[327377124,1716028264407,-500.0,0.00036438,9]
[327377125,1716028264420,-500.0,0.00036438,9]
[327377126,1716028264433,-180.56561444,0.00036438,9]
[327377127,1716028264443,-500.0,0.00036438,9]
[327377128,1716028264452,-500.0,0.00036438,9]
[327377129,1716028264462,-500.0,0.00036438,9]
[327377130,1716028264471,-500.0,0.00036438,9]
[327377131,1716028264480,-500.0,0.00036438,9]
[327377132,1716028264490,-740.89,0.00036438,9]
[327377133,1716028264500,-3127.32,0.00036438,9]
[327377134,1716028264511,-500.0,0.00036438,9]
[327377135,1716028264524,-500.0,0.00036438,9]
[327377136,1716028264534,-151.0,0.00036438,7]
[327377137,1716028264544,-538.28,0.00036438,9]
[327377138,1716028264556,-593.03,0.00036438,9]
[327377139,1716028264565,-500.0,0.00036438,9]
[327377140,1716028264574,-500.0,0.00036438,9]
[327377141,1716028264584,-500.0,0.00036438,9]
[327377142,1716028264596,-1731.31,0.00036438,9]
[327377143,1716028264606,-500.0,0.00036438,9]
[327377144,1716028264615,-151.0,0.00036438,7]
[327377145,1716028264625,-500.0,0.00036438,9]
[327377146,1716028264635,-500.0,0.00036438,9]
[327377147,1716028264644,-500.0,0.00036438,9]
[327377148,1716028264654,-500.0,0.00036438,9]
[327377149,1716028264663,-500.0,0.00036438,9]
[327377150,1716028264672,-500.0,0.00036438,9]
[327377151,1716028264682,-500.0,0.00036438,9]
[327377152,1716028264691,-2430.32,0.00036438,9]
[327377153,1716028264700,-500.0,0.00036438,9]
[327377154,1716028264709,-500.0,0.00036438,9]
[327377155,1716028264719,-974.37,0.00036438,9]
[327377156,1716028264728,-500.0,0.00036438,9]
[327377157,1716028264738,-500.0,0.00036438,9]
[327377158,1716028264747,-500.0,0.00036438,9]
[327377159,1716028264756,-3190.52,0.00036438,9]
[327377160,1716028264766,-500.0,0.00036438,9]
[327377161,1716028264775,-566.41709465,0.00036438,9]
[327377162,1716028264785,-500.0,0.00036438,9]
[327377163,1716028264794,-500.0,0.00036438,9]
[327377164,1716028264803,-500.0,0.00036438,9]
[327377165,1716028264813,-142.38052266,0.00036438,9]
[327377166,1716028265445,-357.61947734,0.00036438,9]
[327377167,1716028265455,-171.45616872,0.00036438,9]
[327377168,1716028265463,-500.0,0.00036438,9]
[327377169,1716028265472,-500.0,0.00036438,9]
[327377170,1716028265481,-500.0,0.00036438,9]
[327377171,1716028265490,-500.0,0.00036438,9]
[327377172,1716028265499,-500.0,0.00036438,9]
[327377173,1716028265508,-500.0,0.00036438,9]
[327377174,1716028265523,-151.0,0.00036438,7]
[327377175,1716028265532,-500.0,0.00036438,9]
[327377176,1716028265542,-151.0,0.00036438,7]
[327377177,1716028265551,-500.0,0.00036438,9]
[327377178,1716028265562,-500.0,0.00036438,9]
[327377179,1716028265572,-500.0,0.00036438,9]
[327377180,1716028265581,-500.0,0.00036438,9]
[327377181,1716028265591,-500.0,0.00036438,9]
[327377182,1716028265600,-115.47959757,0.00036438,9]
[327377183,1716028265613,-384.52040243,0.00036438,9]
[327377184,1716028265622,-151.0,0.00036438,7]
[327377185,1716028265631,-500.0,0.00036438,9]
[327377186,1716028265640,-500.0,0.00036438,9]
[327377187,1716028265649,-2895.82,0.00036438,9]
[327377188,1716028265659,-152.14986,0.00036438,7]
[327377189,1716028265668,-151.0,0.00036438,7]
[327377190,1716028265678,-500.0,0.00036438,9]
[327377191,1716028265688,-151.0,0.00036438,7]
[327377192,1716028265697,-500.0,0.00036438,9]
[327377193,1716028265706,-500.0,0.00036438,9]
[327377194,1716028265716,-500.0,0.00036438,9]
[327377195,1716028265726,-500.0,0.00036438,9]
[327377196,1716028265736,-2596.48,0.00036438,9]
[327377197,1716028265745,-500.0,0.00036438,9]
[327377198,1716028265755,-500.0,0.00036438,9]
[327377199,1716028265765,-3486.23,0.00036438,9]
[327377200,1716028265774,-500.0,0.00036438,9]
[327377201,1716028265783,-500.0,0.00036438,9]
[327377202,1716028265792,-514.23612396,0.00036438,9]
[327377203,1716028265801,-500.0,0.00036438,9]
[327377204,1716028265810,-500.0,0.00036438,9]
[327377205,1716028265819,-500.0,0.00036438,9]
[327377206,1716028265828,-500.0,0.00036438,9]
[327377207,1716028265837,-500.0,0.00036438,9]
[327377208,1716028265847,-2556.9,0.00036438,9]
[327377209,1716028265856,-500.0,0.00036438,9]
[327377210,1716028265865,-500.0,0.00036438,9]
[327377211,1716028265874,-1.2561275,0.00036438,9]
[327377212,1716028266249,-217.50370839,0.00035505,4]
[327377213,1716028266259,-224.64028325,0.00035615,4]
[327377214,1716028266269,-500.0,0.00035616,9]
[327377215,1716028266278,-498.7438725,0.00036438,9]
[327377216,1716028266287,-507.95561505,0.00036438,9]
[327377217,1716028266296,-500.0,0.00036438,9]
[327377218,1716028266306,-580.94,0.00036438,9]
[327377219,1716028266315,-500.0,0.00036438,9]
[327377220,1716028266324,-500.0,0.00036438,9]
[327377221,1716028266333,-500.0,0.00036438,9]
[327377222,1716028266342,-500.0,0.00036438,9]
[327377223,1716028266351,-500.0,0.00036438,9]
[327377224,1716028266360,-500.0,0.00036438,9]
[327377225,1716028266369,-517.79276478,0.00036438,9]
[327377226,1716028266378,-500.0,0.00036438,9]
[327377227,1716028266387,-500.0,0.00036438,9]
[327377228,1716028266396,-500.0,0.00036438,9]
[327377229,1716028266405,-500.0,0.00036438,9]
[327377230,1716028266414,-500.0,0.00036438,9]
[327377231,1716028266423,-500.0,0.00036438,9]
[327377232,1716028266433,-500.0,0.00036438,9]
[327377233,1716028266442,-511.88,0.00036438,9]
[327377234,1716028266451,-616.38,0.00036438,9]
[327377235,1716028266460,-500.0,0.00036438,9]
[327377236,1716028266470,-206.891389,0.00036438,7]
[327377237,1716028266479,-385.32697995,0.00036438,9]
[327377238,1716028266488,-500.0,0.00036438,9]
[327377239,1716028266497,-500.0,0.00036438,9]
[327377240,1716028266509,-270.68079527,0.00036438,9]
[327377241,1716028266524,-229.31920473,0.00036438,9]
[327377242,1716028266533,-398.12079527,0.00036438,9]
[327377243,1716028266652,-101.87920473,0.00036438,9]
[327377244,1716028266661,-560.79,0.00036438,9]
[327377245,1716028266670,-621.87,0.00036438,9]
[327377246,1716028266679,-500.0,0.00036438,9]
[327377247,1716028266690,-500.0,0.00036438,9]
[327377248,1716028266699,-500.0,0.00036438,9]
[327377249,1716028266708,-309.00754638,0.00036438,9]
[327377250,1716028266720,-190.99245362,0.00036438,9]
[327377251,1716028266730,-500.0,0.00036438,9]
[327377252,1716028266740,-500.0,0.00036438,9]
[327377253,1716028266749,-332.79029603,0.00036438,9]
[327377254,1716028266761,-167.20970397,0.00036438,9]
[327377255,1716028266770,-500.0,0.00036438,9]
[327377256,1716028266779,-500.0,0.00036438,9]
[327377257,1716028266789,-151.0,0.00036438,7]
[327377258,1716028266798,-156.8,0.00036438,9]
[327377259,1716028266808,-151.0,0.00036438,7]
[327377260,1716028266817,-193.491771,0.00036438,7]
[327377261,1716028266826,-500.0,0.00036438,9]
[327377262,1716028266835,-500.0,0.00036438,9]
[327377263,1716028266844,-500.0,0.00036438,9]
[327377264,1716028266853,-193.491771,0.00036438,7]
[327377265,1716028266862,-500.0,0.00036438,9]
[327377266,1716028266871,-500.0,0.00036438,9]
[327377267,1716028266880,-200.51760608,0.00036438,9]
[327377268,1716028266892,-299.48239392,0.00036438,9]
[327377269,1716028266901,-500.0,0.00036438,9]
[327377270,1716028266911,-500.0,0.00036438,9]
[327377271,1716028266919,-384.81760608,0.00036438,9]
[327377272,1716028266931,-115.18239392,0.00036438,9]
[327377273,1716028266940,-249.89520286,0.00036438,9]
[327377274,1716028267017,-250.10479714,0.00036438,9]
[327377275,1716028267026,-20.32248831,0.00036438,7]
[327377276,1716028267038,-134.84497869,0.00036438,7]
[327377277,1716028267047,-500.0,0.00036438,9]
[327377278,1716028267057,-500.0,0.00036438,9]
[327377279,1716028267066,-500.0,0.00036438,9]
[327377280,1716028267077,-151.0,0.00036438,7]
[327377281,1716028267086,-500.0,0.00036438,9]
[327377282,1716028267096,-69.43079527,0.00036438,7]
[327377283,1716028267108,-127.68356273,0.00036438,7]
[327377284,1716028267117,-500.0,0.00036438,9]
[327377285,1716028267126,-291.07322727,0.00036438,9]
[327377286,1716028370997,500.0,0.0002,30]
[327377287,1716028383564,533.0,0.00024,120]
[327377290,1716028472806,472.27,0.00010959,2]
[327377404,1716029432162,-155.0,0.00012203,2]
[327377406,1716029432173,-377.96673764,0.00012203,2]
[327377408,1716029432182,-670.671673,0.00012204,2]
[327377414,1716029432394,-9100.19353499,0.00012204,2]
[327377415,1716029432431,-2983.40555884,0.00012204,2]
[327377416,1716029432440,-204.5777286,0.00012304,2]
[327377417,1716029432450,-616.75841439,0.00012305,2]
[327377418,1716029432459,-428.3967097,0.00012305,2]
[327377419,1716029432469,-150.0,0.00012314,2]
[327377420,1716029432478,-1195.13042286,0.00012348,2]
[327377421,1716029432487,-2939.95210444,0.00012999,2]
[327377422,1716029432496,-7178.28194535,0.00013,2]
[327377423,1716029432643,-579.978432,0.00013,2]
[327377454,1716029438142,-545.03939917,0.00013,2]
[327377455,1716029438154,-1347.76,0.00013,2]
[327377456,1716029438166,-1171.11856861,0.00013,2]
[327377457,1716029438276,-302.59910348,0.00013,2]
[327377458,1716029438444,-56574.30549311,0.00013,2]
[327377459,1716029438456,-873.81182588,0.00013,2]
[327377460,1716029438468,-368.4034386,0.00013,2]
[327377461,1716029438480,-129573.88694998,0.00013,2]
[327377462,1716029438489,-155.52,0.00013973,2]
[327377463,1716029438499,-1112.22,0.00013973,6]
[327377464,1716029438508,-797.65,0.00017808,2]
[327377465,1716029438518,-499.99,0.00017808,2]
[327377466,1716029438527,-353.42191436,0.000195,2]
[327377467,1716029438537,-167.96,0.00023565,2]
[327377468,1716029438548,-293.88203282,0.00024,2]
[327377470,1716029438558,-1550.0,0.00025,2]
[327377472,1716029438567,-153.83,0.0002694,2]
[327377473,1716029438576,-1600.0,0.00027,2]
[327377475,1716029438586,-230.3076,0.00027396,2]
[327377476,1716029438595,-3424.41104291,0.000275,30]
[327377477,1716029438605,-1391.1,0.00028689,2]
[327377478,1716029438614,-150.0,0.00028785,2]
[327377479,1716029438623,-1675.05,0.0002882,2]
[327377480,1716029438632,-2000.0,0.00028838,2]
[327377481,1716029438642,-7007.45,0.00029032,2]
[327377482,1716029438652,-250.0,0.00029117,2]
[327377483,1716029438662,-494.8,0.00029212,2]
[327377484,1716029438671,-789.65,0.00029248,2]
[327377485,1716029438683,-500.0,0.00029265,2]
[327377487,1716029438693,-250.0,0.00029344,2]
[327377488,1716029438703,-286.78,0.00029356,2]
[327377489,1716029438712,-200.0,0.00029357,2]
[327377490,1716029438723,-23900.0,0.00029366,2]
[327377491,1716029438733,-250.0,0.00029789,2]
[327377492,1716029438743,-357.31,0.00030306,2]
[327377493,1716029438753,-180.24,0.00030312,120]
[327377494,1716029438764,-153.83,0.0003085,2]
[327377495,1716029438773,-180.0,0.00031378,2]
[327377496,1716029438783,-789.65,0.00031988,2]
[327377497,1716029438793,-164.31,0.00032056,2]
[327377498,1716029438803,-4651.0,0.000325,3]
[327377499,1716029438813,-494.8,0.00032863,2]
[327377500,1716029438823,-357.31,0.00034094,2]
[327377501,1716029438833,-180.24,0.00034101,120]
[327377503,1716029438842,-150.0,0.00034548,10]
[327377504,1716029438852,-789.65,0.00034727,2]
[327377505,1716029438861,-153.83,0.00034761,2]
[327377506,1716029438871,-151.0,0.0003523,2]
[327377507,1716029438881,-167.96,0.00035347,2]
[327377508,1716029438892,-3386.06475506,0.00035438,4]
[327377509,1716029438902,-156.90148724,0.00035504,2]
[327377510,1716029438911,-193.51900938,0.00035516,2]
[327377511,1716029438921,-305.9617255,0.00035516,2]
[327377512,1716029438930,-386.34993039,0.00035516,9]
[327377513,1716029438940,-999.04292246,0.000356,30]
[327377514,1716029438949,-165.89183315,0.00035606,2]
[327377515,1716029438959,-286.78,0.00035606,2]
[327377516,1716029438968,-286.78,0.00035606,2]
[327377517,1716029438977,-1244.75977175,0.00035614,4]
[327377518,1716029438986,-319.6333066,0.00035614,4]
[327377519,1716029438996,-157.05090717,0.00035614,4]
[327377520,1716029439006,-1156.32958208,0.00035614,4]
[327377521,1716029439019,-153.0,0.00035614,30]
[327377522,1716029439033,-405.73130336,0.00035615,4]
[327377523,1716029439044,-104488.75651356,0.00035615,30]
[327377524,1716029439054,-527.9407484,0.00035616,7]
[327377525,1716029439064,-500.0,0.00035616,9]
[327377526,1716029439075,-500.0,0.00035616,9]
[327377527,1716029439085,-515.63273376,0.00035616,9]
[327377529,1716029439095,-500.0,0.00035616,9]
[327377531,1716029439104,-500.0,0.00035616,9]
[327377533,1716029439115,-577.29962592,0.00035616,9]
[327377535,1716029439125,-500.0,0.00035616,9]
[327377537,1716029439135,-175.50842963,0.00035616,9]
[327377539,1716029439145,-500.0,0.00035616,9]
[327377541,1716029439155,-500.0,0.00035616,9]
[327377543,1716029439165,-500.0,0.00035616,9]
[327377545,1716029439175,-500.0,0.00035616,9]
[327377547,1716029439185,-500.0,0.00035616,9]